[Event "Titled Tuesday Blitz May 30 Early 2023"]
[White "Zenin, Dmitry"]
[Black "Acikel, Mert"]
[WhiteFideId "4127897"]
[BlackFideId "12956465"]
[WhiteElo "2215"]
[BlackElo "2097"]
[Result "0-1"]
[Round "11"]
[TimeControl "180+2"]
[Date "2023.05.30"]
[WhiteClock "0:00:12"]
[BlackClock "0:00:57"]

1. d4 {[%clk 0:03:00]}  d5 {[%clk 0:03:00]} 2. c4 {[%clk 0:03:00]}  e6 {[%clk 0:03:00]} 3. Nc3 {[%clk 0:03:00]}  Nf6 {[%clk 0:03:00]} 4. cxd5 {[%clk 0:03:00]}  exd5 {[%clk 0:03:01]} 5. Bg5 {[%clk 0:02:59]}  c6 {[%clk 0:03:01]} 6. e3 {[%clk 0:02:59]}  Be7 {[%clk 0:03:02]} 7. Qc2 {[%clk 0:02:57]}  h6 {[%clk 0:03:03]} 8. Bh4 {[%clk 0:02:57]}  O-O {[%clk 0:03:03]} 9. Bd3 {[%clk 0:02:55]}  Re8 {[%clk 0:03:03]} 10. Nf3 {[%clk 0:02:54]}  Ne4 {[%clk 0:03:03]} 11. Bxe7 {[%clk 0:02:46]}  Qxe7 {[%clk 0:03:03]} 12. O-O {[%clk 0:02:46]}  Bf5 {[%clk 0:03:03]} 13. Ne5 {[%clk 0:02:36]}  Nd7 {[%clk 0:03:01]} 14. Nxd7 {[%clk 0:02:33]}  Qxd7 {[%clk 0:03:00]} 15. f3 {[%clk 0:02:27]}  Nd6 {[%clk 0:03:00]} 16. e4 {[%clk 0:02:25]}  dxe4 {[%clk 0:02:52]} 17. fxe4 {[%clk 0:02:25]}  Bg6 {[%clk 0:02:40]} 18. Rad1 {[%clk 0:02:12]}  Rad8 {[%clk 0:02:37]} 19. e5 {[%clk 0:02:02]}  Bxd3 {[%clk 0:02:35]} 20. Qxd3 {[%clk 0:01:59]}  Nc8 {[%clk 0:02:29]} 21. Qf3 {[%clk 0:01:45]}  Qe6 {[%clk 0:02:21]} 22. a3 {[%clk 0:01:32]}  Ne7 {[%clk 0:02:16]} 23. Ne4 {[%clk 0:01:30]}  Nd5 {[%clk 0:02:12]} 24. Nd6 {[%clk 0:01:28]}  Re7 {[%clk 0:02:11]} 25. Nf5 {[%clk 0:01:21]}  Red7 {[%clk 0:02:09]} 26. h4 {[%clk 0:00:58]}  Qg6 {[%clk 0:02:03]} 27. h5 {[%clk 0:00:47]}  Qg5 {[%clk 0:02:02]} 28. Qh3 {[%clk 0:00:34]}  Nf4 {[%clk 0:01:55]} 29. Rxf4 {[%clk 0:00:26]}  Qxf4 {[%clk 0:01:53]} 30. Rf1 {[%clk 0:00:26]}  Qg5 {[%clk 0:01:52]} 31. Rf3 {[%clk 0:00:26]}  Rxd4 {[%clk 0:01:49]} 32. Rg3 {[%clk 0:00:26]}  Qc1+ {[%clk 0:01:21]} 33. Kh2 {[%clk 0:00:25]}  Rd1 {[%clk 0:01:21]} 34. Rxg7+ {[%clk 0:00:18]}  Kh8 {[%clk 0:01:03]} 35. Qg4 {[%clk 0:00:15]}  Rh1+ {[%clk 0:00:59]} 36. Kg3 {[%clk 0:00:12]}  Rd3+ {[%clk 0:00:57]} 0-1


[Site "https://www.chess.com"]

[Event "Titled Tuesday Blitz May 30 Early 2023"]
[White "Flis, Pawel"]
[Black "Novikova, Galina"]
[WhiteFideId "1112864"]
[BlackFideId "4157095"]
[WhiteElo "1822"]
[BlackElo "1953"]
[Result "0-1"]
[Round "11"]
[TimeControl "180+2"]
[Date "2023.05.30"]
[WhiteClock "0:01:12"]
[BlackClock "0:01:47"]

1. e4 {[%clk 0:03:00]}  e6 {[%clk 0:03:00]} 2. d4 {[%clk 0:02:59]}  d5 {[%clk 0:03:01]} 3. Nc3 {[%clk 0:03:00]}  Bb4 {[%clk 0:03:00]} 4. e5 {[%clk 0:02:59]}  c5 {[%clk 0:03:01]} 5. a3 {[%clk 0:02:58]}  Bxc3+ {[%clk 0:03:01]} 6. bxc3 {[%clk 0:02:58]}  Ne7 {[%clk 0:03:02]} 7. a4 {[%clk 0:02:57]}  b6 {[%clk 0:03:00]} 8. Bb5+ {[%clk 0:02:53]}  Bd7 {[%clk 0:03:00]} 9. Bd3 {[%clk 0:02:52]}  Bc8 {[%clk 0:03:00]} 10. Bb5+ {[%clk 0:02:51]}  Bd7 {[%clk 0:03:00]} 11. Bd3 {[%clk 0:02:51]}  h6 {[%clk 0:03:00]} 12. Nf3 {[%clk 0:02:50]}  Bc8 {[%clk 0:02:57]} 13. Bb5+ {[%clk 0:02:48]}  Bd7 {[%clk 0:02:55]} 14. Bd3 {[%clk 0:02:48]}  Nf5 {[%clk 0:02:48]} 15. Bxf5 {[%clk 0:02:46]}  exf5 {[%clk 0:02:49]} 16. O-O {[%clk 0:02:42]}  Be6 {[%clk 0:02:49]} 17. Ba3 {[%clk 0:02:40]}  Nd7 {[%clk 0:02:49]} 18. c4 {[%clk 0:02:33]}  O-O {[%clk 0:02:45]} 19. cxd5 {[%clk 0:02:30]}  Bxd5 {[%clk 0:02:45]} 20. dxc5 {[%clk 0:02:29]}  Nxc5 {[%clk 0:02:44]} 21. Bxc5 {[%clk 0:02:21]}  bxc5 {[%clk 0:02:45]} 22. Re1 {[%clk 0:02:21]}  Be4 {[%clk 0:02:37]} 23. Qe2 {[%clk 0:02:20]}  Qc7 {[%clk 0:02:32]} 24. Qc4 {[%clk 0:02:15]}  Bxf3 {[%clk 0:02:23]} 25. gxf3 {[%clk 0:02:13]}  Rad8 {[%clk 0:02:18]} 26. e6 {[%clk 0:02:04]}  fxe6 {[%clk 0:02:19]} 27. Qxe6+ {[%clk 0:02:03]}  Kh8 {[%clk 0:02:19]} 28. Qe7 {[%clk 0:02:00]}  Qf4 {[%clk 0:02:18]} 29. Qe3 {[%clk 0:01:56]}  Qh4 {[%clk 0:02:14]} 30. f4 {[%clk 0:01:51]}  Rd4 {[%clk 0:02:12]} 31. Rad1 {[%clk 0:01:44]}  Rxf4 {[%clk 0:02:11]} 32. Rd7 {[%clk 0:01:38]}  Re4 {[%clk 0:01:50]} 33. Qd2 {[%clk 0:01:27]}  Qg4+ {[%clk 0:01:49]} 34. Kf1 {[%clk 0:01:21]}  Qh3+ {[%clk 0:01:49]} 35. Kg1 {[%clk 0:01:12]}  Rg4+ {[%clk 0:01:48]} 36. Kh1 {[%clk 0:01:12]}  Qg2# {[%clk 0:01:47]} 0-1


[Site "https://www.chess.com"]

[Event "Titled Tuesday Blitz May 30 Early 2023"]
[White "Vaglio Munoz, Jaime"]
[Black "Antonova, Nadezhda"]
[WhiteFideId "6500145"]
[BlackFideId "14700182"]
[WhiteElo "2199"]
[BlackElo "1799"]
[Result "1-0"]
[Round "11"]
[TimeControl "180+2"]
[Date "2023.05.30"]
[WhiteClock "0:00:20"]
[BlackClock "0:00:00"]

1. Nf3 {[%clk 0:03:00]}  Nf6 {[%clk 0:02:59]} 2. b3 {[%clk 0:02:58]}  g6 {[%clk 0:02:58]} 3. Bb2 {[%clk 0:02:58]}  Bg7 {[%clk 0:02:58]} 4. g3 {[%clk 0:02:58]}  d6 {[%clk 0:02:58]} 5. d4 {[%clk 0:02:58]}  O-O {[%clk 0:02:57]} 6. Bg2 {[%clk 0:02:58]}  c5 {[%clk 0:02:57]} 7. dxc5 {[%clk 0:02:56]}  dxc5 {[%clk 0:02:56]} 8. Qc1 {[%clk 0:02:56]}  Nc6 {[%clk 0:02:42]} 9. O-O {[%clk 0:02:54]}  Qc7 {[%clk 0:02:36]} 10. Rd1 {[%clk 0:02:50]}  b6 {[%clk 0:02:35]} 11. Nc3 {[%clk 0:02:46]}  a6 {[%clk 0:02:32]} 12. Nd5 {[%clk 0:02:46]}  Nxd5 {[%clk 0:02:32]} 13. Bxg7 {[%clk 0:02:45]}  Kxg7 {[%clk 0:02:30]} 14. Rxd5 {[%clk 0:02:45]}  Bb7 {[%clk 0:02:30]} 15. Rd2 {[%clk 0:02:36]}  Rad8 {[%clk 0:02:27]} 16. Qb2+ {[%clk 0:02:36]}  Kg8 {[%clk 0:02:26]} 17. Rad1 {[%clk 0:02:35]}  b5 {[%clk 0:02:21]} 18. h4 {[%clk 0:02:32]}  Rxd2 {[%clk 0:02:18]} 19. Rxd2 {[%clk 0:02:32]}  Rd8 {[%clk 0:02:17]} 20. Qc1 {[%clk 0:02:20]}  Nd4 {[%clk 0:02:08]} 21. Nxd4 {[%clk 0:01:54]}  Rxd4 {[%clk 0:01:58]} 22. c3 {[%clk 0:01:46]}  Rd7 {[%clk 0:01:48]} 23. Qd1 {[%clk 0:01:42]}  Rxd2 {[%clk 0:01:47]} 24. Qxd2 {[%clk 0:01:43]}  Bxg2 {[%clk 0:01:47]} 25. Kxg2 {[%clk 0:01:44]}  h5 {[%clk 0:01:35]} 26. e4 {[%clk 0:01:41]}  Qd6 {[%clk 0:01:21]} 27. Qe3 {[%clk 0:01:36]}  Qc6 {[%clk 0:01:17]} 28. Kf1 {[%clk 0:01:31]}  Kg7 {[%clk 0:01:14]} 29. Ke2 {[%clk 0:01:31]}  e5 {[%clk 0:01:06]} 30. f4 {[%clk 0:01:30]}  f6 {[%clk 0:01:04]} 31. Qd3 {[%clk 0:01:27]}  Qe6 {[%clk 0:01:02]} 32. f5 {[%clk 0:01:20]}  gxf5 {[%clk 0:01:01]} 33. exf5 {[%clk 0:01:21]}  Qc6 {[%clk 0:01:01]} 34. Kf2 {[%clk 0:01:12]}  e4 {[%clk 0:00:50]} 35. Qd8 {[%clk 0:01:08]}  Kf7 {[%clk 0:00:38]} 36. Ke3 {[%clk 0:01:08]}  c4 {[%clk 0:00:36]} 37. b4 {[%clk 0:01:06]}  Kg7 {[%clk 0:00:27]} 38. Qe7+ {[%clk 0:01:05]}  Kh6 {[%clk 0:00:24]} 39. Qxe4 {[%clk 0:01:05]}  Qb6+ {[%clk 0:00:19]} 40. Qd4 {[%clk 0:01:04]}  Qc6 {[%clk 0:00:17]} 41. Qf4+ {[%clk 0:01:03]}  Kg7 {[%clk 0:00:17]} 42. Qe4 {[%clk 0:01:03]}  Qd6 {[%clk 0:00:16]} 43. Kf3 {[%clk 0:00:27]}  Qd1+ {[%clk 0:00:16]} 44. Qe2 {[%clk 0:00:26]}  Qh1+ {[%clk 0:00:15]} 45. Kf4 {[%clk 0:00:26]}  Qc1+ {[%clk 0:00:12]} 46. Ke4 {[%clk 0:00:21]}  Qb1+ {[%clk 0:00:10]} 47. Kd5 {[%clk 0:00:21]}  Qxf5+ {[%clk 0:00:00]} 48. Kc6 {[%clk 0:00:20]} 1-0


[Site "https://www.chess.com"]

[Event "Titled Tuesday Blitz May 30 Early 2023"]
[White "Blackwhite017"]
[Black "Levitan, Caleb Levi"]
[BlackFideId "14332620"]
[WhiteElo "2117"]
[BlackElo "1963"]
[Result "0-1"]
[Round "11"]
[TimeControl "180+2"]
[Date "2023.05.30"]
[WhiteClock "0:00:00"]
[BlackClock "0:00:44"]

1. e4 {[%clk 0:02:59]}  e5 {[%clk 0:02:58]} 2. Nf3 {[%clk 0:02:59]}  Nc6 {[%clk 0:02:57]} 3. Bb5 {[%clk 0:02:59]}  a6 {[%clk 0:02:55]} 4. Ba4 {[%clk 0:02:59]}  Nf6 {[%clk 0:02:54]} 5. d3 {[%clk 0:03:00]}  b5 {[%clk 0:02:52]} 6. Bb3 {[%clk 0:03:00]}  Bc5 {[%clk 0:02:52]} 7. c3 {[%clk 0:02:56]}  d6 {[%clk 0:02:44]} 8. h3 {[%clk 0:02:50]}  h6 {[%clk 0:02:32]} 9. a4 {[%clk 0:02:43]}  Bb7 {[%clk 0:02:24]} 10. Nbd2 {[%clk 0:02:39]}  O-O {[%clk 0:02:17]} 11. O-O {[%clk 0:02:37]}  Ne7 {[%clk 0:02:05]} 12. Re1 {[%clk 0:02:28]}  Ng6 {[%clk 0:02:03]} 13. d4 {[%clk 0:02:21]}  Bb6 {[%clk 0:01:51]} 14. axb5 {[%clk 0:02:17]}  axb5 {[%clk 0:01:51]} 15. Rxa8 {[%clk 0:02:16]}  Qxa8 {[%clk 0:01:36]} 16. Nf1 {[%clk 0:02:11]}  Bxe4 {[%clk 0:01:27]} 17. N1h2 {[%clk 0:02:09]}  Bxf3 {[%clk 0:01:05]} 18. Nxf3 {[%clk 0:00:17]}  e4 {[%clk 0:01:02]} 19. Nh2 {[%clk 0:00:15]}  d5 {[%clk 0:01:00]} 20. f3 {[%clk 0:00:15]}  Qd8 {[%clk 0:00:47]} 21. Ng4 {[%clk 0:00:00]}  Nxg4 {[%clk 0:00:44]} 0-1


[Site "https://www.chess.com"]

[Event "Titled Tuesday Blitz May 30 Early 2023"]
[White "agvania123"]
[Black "Steenbekkers, Franck"]
[BlackFideId "1004220"]
[WhiteElo "2240"]
[BlackElo "2113"]
[Result "1/2-1/2"]
[Round "11"]
[TimeControl "180+2"]
[Date "2023.05.30"]
[WhiteClock "0:01:26"]
[BlackClock "0:01:52"]

1. c4 {[%clk 0:02:57]}  Nf6 {[%clk 0:02:58]} 2. Nf3 {[%clk 0:02:57]}  g6 {[%clk 0:02:58]} 3. Nc3 {[%clk 0:02:58]}  Bg7 {[%clk 0:02:57]} 4. e3 {[%clk 0:02:57]}  O-O {[%clk 0:02:57]} 5. b3 {[%clk 0:02:57]}  d6 {[%clk 0:02:56]} 6. Bb2 {[%clk 0:02:57]}  e5 {[%clk 0:02:55]} 7. d4 {[%clk 0:02:57]}  e4 {[%clk 0:02:54]} 8. Nd2 {[%clk 0:02:57]}  Re8 {[%clk 0:02:53]} 9. Be2 {[%clk 0:02:57]}  c6 {[%clk 0:02:52]} 10. O-O {[%clk 0:02:56]}  d5 {[%clk 0:02:52]} 11. cxd5 {[%clk 0:02:57]}  cxd5 {[%clk 0:02:52]} 12. Rc1 {[%clk 0:02:57]}  Nc6 {[%clk 0:02:51]} 13. a3 {[%clk 0:02:57]}  a5 {[%clk 0:02:49]} 14. Na4 {[%clk 0:02:56]}  Bf5 {[%clk 0:02:44]} 15. Nc5 {[%clk 0:02:52]}  Qe7 {[%clk 0:02:34]} 16. Nb1 {[%clk 0:02:42]}  h5 {[%clk 0:02:31]} 17. Nc3 {[%clk 0:02:41]}  Rac8 {[%clk 0:02:24]} 18. Nb5 {[%clk 0:02:41]}  Ng4 {[%clk 0:02:12]} 19. h3 {[%clk 0:02:40]}  Nf6 {[%clk 0:02:09]} 20. Qd2 {[%clk 0:02:39]}  b6 {[%clk 0:02:07]} 21. Na4 {[%clk 0:02:39]}  Qe6 {[%clk 0:02:03]} 22. Nxb6 {[%clk 0:02:35]}  Bxh3 {[%clk 0:02:02]} 23. Nxc8 {[%clk 0:02:28]}  Rxc8 {[%clk 0:02:00]} 24. gxh3 {[%clk 0:01:45]}  Qxh3 {[%clk 0:01:57]} 25. Nd6 {[%clk 0:01:46]}  Ng4 {[%clk 0:01:53]} 26. Bxg4 {[%clk 0:01:24]}  Qxg4+ {[%clk 0:01:52]} 27. Kh1 {[%clk 0:01:24]}  Qh3+ {[%clk 0:01:51]} 28. Kg1 {[%clk 0:01:24]}  Qg4+ {[%clk 0:01:51]} 29. Kh2 {[%clk 0:01:24]}  Qh4+ {[%clk 0:01:51]} 30. Kg2 {[%clk 0:01:25]}  Qg4+ {[%clk 0:01:52]} 31. Kh2 {[%clk 0:01:25]}  Qh4+ {[%clk 0:01:52]} 32. Kg1 {[%clk 0:01:26]}  Qg4+ {[%clk 0:01:52]} 1/2-1/2


[Site "https://www.chess.com"]

[Event "Titled Tuesday Blitz May 30 Early 2023"]
[White "Lohani, Sujana"]
[Black "Guevara Sanchez, Erick Marvin"]
[WhiteFideId "12311987"]
[BlackFideId "6700136"]
[WhiteElo "1718"]
[BlackElo "2040"]
[Result "0-1"]
[Round "11"]
[TimeControl "180+2"]
[Date "2023.05.30"]
[WhiteClock "0:00:00"]
[BlackClock "0:00:47"]

1. d4 {[%clk 0:02:32]}  d5 {[%clk 0:02:58]} 2. Nf3 {[%clk 0:02:33]}  Nf6 {[%clk 0:02:57]} 3. c4 {[%clk 0:02:34]}  e6 {[%clk 0:02:54]} 4. g3 {[%clk 0:02:34]}  c5 {[%clk 0:02:54]} 5. Bg2 {[%clk 0:02:34]}  Nc6 {[%clk 0:02:54]} 6. cxd5 {[%clk 0:02:34]}  exd5 {[%clk 0:02:54]} 7. O-O {[%clk 0:02:34]}  Be7 {[%clk 0:02:54]} 8. dxc5 {[%clk 0:02:34]}  Bxc5 {[%clk 0:02:54]} 9. Nc3 {[%clk 0:02:35]}  O-O {[%clk 0:02:53]} 10. Bg5 {[%clk 0:02:31]}  Be6 {[%clk 0:02:43]} 11. Qc1 {[%clk 0:02:19]}  Bb6 {[%clk 0:02:36]} 12. Rd1 {[%clk 0:02:15]}  Re8 {[%clk 0:02:24]} 13. e3 {[%clk 0:01:42]}  Rc8 {[%clk 0:02:09]} 14. Qd2 {[%clk 0:01:40]}  h6 {[%clk 0:02:02]} 15. Bxf6 {[%clk 0:01:39]}  Qxf6 {[%clk 0:01:59]} 16. Nxd5 {[%clk 0:01:36]}  Bxd5 {[%clk 0:01:59]} 17. Qxd5 {[%clk 0:01:36]}  Qxb2 {[%clk 0:01:59]} 18. Nd4 {[%clk 0:01:32]}  Rcd8 {[%clk 0:01:45]} 19. Qb3 {[%clk 0:01:19]}  Bxd4 {[%clk 0:01:36]} 20. exd4 {[%clk 0:01:16]}  Qxb3 {[%clk 0:01:34]} 21. axb3 {[%clk 0:01:11]}  Nxd4 {[%clk 0:01:34]} 22. Bf1 {[%clk 0:00:40]}  a6 {[%clk 0:01:29]} 23. b4 {[%clk 0:00:31]}  Nc2 {[%clk 0:01:08]} 24. Rxd8 {[%clk 0:00:19]}  Rxd8 {[%clk 0:01:09]} 25. Rb1 {[%clk 0:00:19]}  b5 {[%clk 0:01:08]} 26. Bg2 {[%clk 0:00:12]}  Rd4 {[%clk 0:01:03]} 27. Rb2 {[%clk 0:00:10]}  Nxb4 {[%clk 0:01:02]} 28. Bf3 {[%clk 0:00:08]}  a5 {[%clk 0:00:54]} 29. Kg2 {[%clk 0:00:07]}  g6 {[%clk 0:00:54]} 30. h4 {[%clk 0:00:07]}  Kg7 {[%clk 0:00:53]} 31. Be2 {[%clk 0:00:05]}  Rd5 {[%clk 0:00:51]} 32. Bf3 {[%clk 0:00:02]}  Rc5 {[%clk 0:00:49]} 33. Rd2 {[%clk 0:00:00]}  Nc6 {[%clk 0:00:47]} 0-1


[Site "https://www.chess.com"]

[Event "Titled Tuesday Blitz May 30 Early 2023"]
[White "Lakshmi C"]
[Black "Torres Dominguez, David"]
[WhiteFideId "25035347"]
[BlackFideId "2220857"]
[WhiteElo "1942"]
[BlackElo "1999"]
[Result "0-1"]
[Round "11"]
[TimeControl "180+2"]
[Date "2023.05.30"]
[WhiteClock "0:00:00"]
[BlackClock "0:02:41"]

1. e4 {[%clk 0:00:48]}  e5 {[%clk 0:02:55]} 2. Nf3 {[%clk 0:00:47]}  Nc6 {[%clk 0:02:55]} 3. Bb5 {[%clk 0:00:43]}  Nge7 {[%clk 0:02:54]} 4. O-O {[%clk 0:00:41]}  g6 {[%clk 0:02:54]} 5. c3 {[%clk 0:00:41]}  Bg7 {[%clk 0:02:54]} 6. d4 {[%clk 0:00:41]}  O-O {[%clk 0:02:53]} 7. Bg5 {[%clk 0:00:35]}  f6 {[%clk 0:02:51]} 8. Bh4 {[%clk 0:00:34]}  exd4 {[%clk 0:02:52]} 9. cxd4 {[%clk 0:00:32]}  d5 {[%clk 0:02:53]} 10. Nc3 {[%clk 0:00:24]}  dxe4 {[%clk 0:02:51]} 11. Bc4+ {[%clk 0:00:20]}  Kh8 {[%clk 0:02:50]} 12. Nxe4 {[%clk 0:00:00]}  Bg4 {[%clk 0:02:41]} 0-1


[Site "https://www.chess.com"]

[Event "Titled Tuesday Blitz May 30 Early 2023"]
[White "Torres Hernandez, Leslie Carolin"]
[Black "Mirzanurov, Bulat"]
[WhiteFideId "8400504"]
[BlackFideId "4184521"]
[WhiteElo "1920"]
[BlackElo "2005"]
[Result "1-0"]
[Round "11"]
[TimeControl "180+2"]
[Date "2023.05.30"]
[WhiteClock "0:00:21"]
[BlackClock "0:00:17"]

1. e4 {[%clk 0:03:00]}  c5 {[%clk 0:02:59]} 2. Nf3 {[%clk 0:03:01]}  d6 {[%clk 0:02:57]} 3. Bb5+ {[%clk 0:03:01]}  Nd7 {[%clk 0:02:52]} 4. a4 {[%clk 0:03:00]}  Nf6 {[%clk 0:02:48]} 5. Nc3 {[%clk 0:02:59]}  a6 {[%clk 0:02:48]} 6. Be2 {[%clk 0:02:58]}  e6 {[%clk 0:02:47]} 7. O-O {[%clk 0:02:58]}  Be7 {[%clk 0:02:47]} 8. d3 {[%clk 0:02:56]}  O-O {[%clk 0:02:46]} 9. a5 {[%clk 0:02:54]}  Nb8 {[%clk 0:02:43]} 10. e5 {[%clk 0:02:54]}  Nfd7 {[%clk 0:02:38]} 11. exd6 {[%clk 0:02:32]}  Bxd6 {[%clk 0:02:39]} 12. Be3 {[%clk 0:02:23]}  Nc6 {[%clk 0:02:36]} 13. Ne4 {[%clk 0:02:23]}  Be7 {[%clk 0:02:30]} 14. Qd2 {[%clk 0:02:15]}  Qc7 {[%clk 0:02:12]} 15. Bf4 {[%clk 0:02:11]}  e5 {[%clk 0:02:05]} 16. Be3 {[%clk 0:02:07]}  f5 {[%clk 0:02:02]} 17. Neg5 {[%clk 0:02:03]}  Nf6 {[%clk 0:01:43]} 18. Qc3 {[%clk 0:02:03]}  Qd6 {[%clk 0:01:24]} 19. Nd2 {[%clk 0:01:48]}  Nd5 {[%clk 0:01:11]} 20. Qb3 {[%clk 0:01:44]}  Kh8 {[%clk 0:01:04]} 21. Nc4 {[%clk 0:01:33]}  Qd8 {[%clk 0:00:54]} 22. Nf3 {[%clk 0:01:33]}  Bf6 {[%clk 0:00:30]} 23. c3 {[%clk 0:01:29]}  Nxe3 {[%clk 0:00:26]} 24. fxe3 {[%clk 0:01:15]}  Be6 {[%clk 0:00:25]} 25. Nfd2 {[%clk 0:01:11]}  Qc7 {[%clk 0:00:17]} 26. Qb6 {[%clk 0:01:09]}  Qxb6 {[%clk 0:00:15]} 27. Nxb6 {[%clk 0:01:08]}  Rad8 {[%clk 0:00:15]} 28. Ndc4 {[%clk 0:01:02]}  Be7 {[%clk 0:00:14]} 29. Rfd1 {[%clk 0:00:59]}  Bxc4 {[%clk 0:00:14]} 30. Nxc4 {[%clk 0:00:58]}  Bd6 {[%clk 0:00:14]} 31. Bf3 {[%clk 0:00:57]}  Bc7 {[%clk 0:00:14]} 32. Bxc6 {[%clk 0:00:53]}  bxc6 {[%clk 0:00:15]} 33. Kf1 {[%clk 0:00:33]}  Rd7 {[%clk 0:00:15]} 34. Ke2 {[%clk 0:00:33]}  e4 {[%clk 0:00:13]} 35. dxe4 {[%clk 0:00:32]}  Rxd1 {[%clk 0:00:12]} 36. Rxd1 {[%clk 0:00:31]}  fxe4 {[%clk 0:00:12]} 37. g3 {[%clk 0:00:20]}  Rf7 {[%clk 0:00:07]} 38. Ne5 {[%clk 0:00:15]}  Rf6 {[%clk 0:00:06]} 39. Rd7 {[%clk 0:00:12]}  Bxa5 {[%clk 0:00:04]} 40. Nc4 {[%clk 0:00:10]}  Bxc3 {[%clk 0:00:02]} 41. bxc3 {[%clk 0:00:10]}  Kg8 {[%clk 0:00:02]} 42. Ra7 {[%clk 0:00:10]}  Kf8 {[%clk 0:00:02]} 43. Rxa6 {[%clk 0:00:10]}  Kf7 {[%clk 0:00:02]} 44. Ne5+ {[%clk 0:00:11]}  Ke6 {[%clk 0:00:02]} 45. Nxc6 {[%clk 0:00:11]}  Kd7 {[%clk 0:00:01]} 46. Nb8+ {[%clk 0:00:11]}  Kc7 {[%clk 0:00:01]} 47. Rxf6 {[%clk 0:00:12]}  gxf6 {[%clk 0:00:01]} 48. Na6+ {[%clk 0:00:13]}  Kb6 {[%clk 0:00:01]} 49. Nb8 {[%clk 0:00:10]}  Kc7 {[%clk 0:00:01]} 50. Na6+ {[%clk 0:00:10]}  Kb6 {[%clk 0:00:02]} 51. Nxc5 {[%clk 0:00:09]}  Kxc5 {[%clk 0:00:02]} 52. Kd2 {[%clk 0:00:09]}  Kc4 {[%clk 0:00:02]} 53. Kc2 {[%clk 0:00:10]}  f5 {[%clk 0:00:02]} 54. h3 {[%clk 0:00:07]}  h5 {[%clk 0:00:02]} 55. h4 {[%clk 0:00:07]}  Kc5 {[%clk 0:00:02]} 56. Kb3 {[%clk 0:00:07]}  Kb5 {[%clk 0:00:02]} 57. c4+ {[%clk 0:00:07]}  Kc5 {[%clk 0:00:02]} 58. Kc3 {[%clk 0:00:08]}  Kc6 {[%clk 0:00:02]} 59. Kd4 {[%clk 0:00:08]}  Kd6 {[%clk 0:00:02]} 60. c5+ {[%clk 0:00:08]}  Kc6 {[%clk 0:00:03]} 61. Ke5 {[%clk 0:00:09]}  Kxc5 {[%clk 0:00:03]} 62. Kxf5 {[%clk 0:00:09]}  Kd5 {[%clk 0:00:04]} 63. Kf4 {[%clk 0:00:09]}  Kd6 {[%clk 0:00:04]} 64. Kxe4 {[%clk 0:00:09]}  Ke6 {[%clk 0:00:04]} 65. Kf4 {[%clk 0:00:10]}  Kf6 {[%clk 0:00:05]} 66. e4 {[%clk 0:00:11]}  Ke6 {[%clk 0:00:05]} 67. Kg5 {[%clk 0:00:11]}  Ke5 {[%clk 0:00:05]} 68. Kxh5 {[%clk 0:00:12]}  Kxe4 {[%clk 0:00:05]} 69. Kg5 {[%clk 0:00:13]}  Ke5 {[%clk 0:00:06]} 70. g4 {[%clk 0:00:14]}  Ke6 {[%clk 0:00:06]} 71. h5 {[%clk 0:00:15]}  Ke7 {[%clk 0:00:07]} 72. Kg6 {[%clk 0:00:16]}  Ke6 {[%clk 0:00:07]} 73. g5 {[%clk 0:00:16]}  Ke5 {[%clk 0:00:08]} 74. Kg7 {[%clk 0:00:16]}  Ke6 {[%clk 0:00:08]} 75. g6 {[%clk 0:00:17]}  Ke5 {[%clk 0:00:09]} 76. h6 {[%clk 0:00:18]}  Ke6 {[%clk 0:00:09]} 77. h7 {[%clk 0:00:19]}  Ke5 {[%clk 0:00:09]} 78. h8=Q {[%clk 0:00:20]}  Ke6 {[%clk 0:00:10]} 79. Qe8+ {[%clk 0:00:20]}  Kd5 {[%clk 0:00:11]} 80. Kf7 {[%clk 0:00:21]}  Kd4 {[%clk 0:00:11]} 81. g7 {[%clk 0:00:22]}  Kc3 {[%clk 0:00:12]} 82. g8=Q {[%clk 0:00:22]}  Kb4 {[%clk 0:00:13]} 83. Kf8 {[%clk 0:00:22]}  Kc5 {[%clk 0:00:14]} 84. Qe5+ {[%clk 0:00:22]}  Kb4 {[%clk 0:00:15]} 85. Qg4+ {[%clk 0:00:21]}  Ka3 {[%clk 0:00:16]} 86. Qe3+ {[%clk 0:00:21]}  Ka2 {[%clk 0:00:16]} 87. Qg2+ {[%clk 0:00:22]}  Ka1 {[%clk 0:00:17]} 88. Qe1# {[%clk 0:00:21]} 1-0


[Site "https://www.chess.com"]

[Event "Titled Tuesday Blitz May 30 Early 2023"]
[White "Sanchez, Robert"]
[Black "dDobravcan"]
[WhiteFideId "2034360"]
[WhiteElo "1815"]
[BlackElo "2098"]
[Result "0-1"]
[Round "11"]
[TimeControl "180+2"]
[Date "2023.05.30"]
[WhiteClock "0:00:54"]
[BlackClock "0:00:02"]

1. e4 {[%clk 0:03:00]}  c5 {[%clk 0:02:59]} 2. Nf3 {[%clk 0:03:00]}  a6 {[%clk 0:02:57]} 3. c3 {[%clk 0:02:59]}  d5 {[%clk 0:02:55]} 4. exd5 {[%clk 0:02:59]}  Qxd5 {[%clk 0:02:55]} 5. d4 {[%clk 0:03:00]}  Nf6 {[%clk 0:02:54]} 6. Be2 {[%clk 0:02:58]}  e6 {[%clk 0:02:51]} 7. O-O {[%clk 0:02:58]}  Nc6 {[%clk 0:02:51]} 8. h3 {[%clk 0:02:48]}  Be7 {[%clk 0:02:46]} 9. Be3 {[%clk 0:02:48]}  cxd4 {[%clk 0:02:35]} 10. cxd4 {[%clk 0:02:46]}  O-O {[%clk 0:02:34]} 11. Nc3 {[%clk 0:02:46]}  Qd8 {[%clk 0:02:18]} 12. Rc1 {[%clk 0:02:43]}  Bd7 {[%clk 0:02:18]} 13. Ne5 {[%clk 0:02:42]}  Nb4 {[%clk 0:02:15]} 14. Bf3 {[%clk 0:02:37]}  Nbd5 {[%clk 0:02:12]} 15. Nxd7 {[%clk 0:02:36]}  Qxd7 {[%clk 0:02:11]} 16. Re1 {[%clk 0:02:33]}  b5 {[%clk 0:01:59]} 17. Bg5 {[%clk 0:02:28]}  Rac8 {[%clk 0:01:47]} 18. Nxd5 {[%clk 0:02:15]}  Nxd5 {[%clk 0:01:30]} 19. Bxe7 {[%clk 0:02:09]}  Nxe7 {[%clk 0:01:30]} 20. Qd2 {[%clk 0:02:04]}  Rxc1 {[%clk 0:01:11]} 21. Rxc1 {[%clk 0:01:58]}  Rd8 {[%clk 0:01:10]} 22. Qa5 {[%clk 0:01:55]}  Rc8 {[%clk 0:00:54]} 23. Rc5 {[%clk 0:01:43]}  g6 {[%clk 0:00:30]} 24. Qxa6 {[%clk 0:01:36]}  Rd8 {[%clk 0:00:18]} 25. Qxb5 {[%clk 0:01:28]}  Qxd4 {[%clk 0:00:18]} 26. a4 {[%clk 0:01:24]}  Qf4 {[%clk 0:00:15]} 27. a5 {[%clk 0:01:21]}  Rb8 {[%clk 0:00:15]} 28. Qc4 {[%clk 0:01:16]}  Qd2 {[%clk 0:00:07]} 29. a6 {[%clk 0:01:09]}  Rxb2 {[%clk 0:00:02]} 30. a7 {[%clk 0:00:54]} 0-1


[Site "https://www.chess.com"]